[Event "IX Famalicao Open 2022"]
[Site "Vila Nova de Famalicao"]
[Date "2022.07.27"]
[Round "5.1"]
[White "Das, Sayantan"]
[Black "Krishna C R G"]
[Result "1/2-1/2"]
[ECO "D14"]
[WhiteElo "2449"]
[BlackElo "2430"]
[Annotator "TA"]
[PlyCount "60"]
[EventDate "2022.07.25"]
[EventType "tourn"]
[EventCountry "POR"]
[SourceTitle "playchess.com"]
[Source "ChessBase"]
[SourceQuality "1"]
[TimeControl "5400+30"]

{[%evp 31,60,7,8,0,6,0,0,0,0,0,0,0,0,0,0,0,0,0,0,0,0,0,0,0,0,0,0,0,0,0,0]} 1. d4 d5 2. c4 c6 3. cxd5 cxd5 4. Nc3 Nc6 5. Nf3 Nf6 6. Bf4 Bf5 7. e3 e6 8. Bd3 Bxd3 9. Qxd3 Bd6 10. Bxd6 Qxd6 11. O-O O-O 12. Rfc1 Rfc8 13. h3 a6 14. a3 h6 15. Rc2 Rc7 16. Rac1 Rac8 {The position is equal.} 17. Ne2 {D14: Slav Defence: Exchange variation with ...Bf5.} Ne7 18. Rxc7 Rxc7 19. Rxc7 Qxc7 20. Qc3 Qxc3 21. Nxc3 $11 {[%mdl 4096] Endgame KNN-KNN} Nc6 22. Ne1 Ne8 23. Nd3 Nd6 24. Kf1 Kf8 25. Ke2 Ke7 {[#]} 26. Kd1 $146 ({Predecessor:} 26. g4 g5 27. f3 f6 28. b3 b6 29. Na4 Nc8 30. Nc3 Nd6 {½-½ (30) Rodriguez Lopez,R (2284)-Astaneh Lopez,A (2446) Budapest 2018}) 26... Kd8 27. Kc2 Kc7 28. b3 b6 29. Nb1 Kd7 30. Nc3 Kc7 {Not much happened in this game.  Weighted Error Value: White=0.03 (flawless) /Black=0.01 (flawless)} 1/2-1/2

[Event "IX Famalicao Open 2022"]
[Site "Vila Nova de Famalicao"]
[Date "2022.07.27"]
[Round "5.2"]
[White "Akhvlediani, Irakli"]
[Black "Abdisalimov, Abdimalik"]
[Result "1/2-1/2"]
[ECO "D37"]
[WhiteElo "2429"]
[BlackElo "2437"]
[Annotator "TA"]
[PlyCount "60"]
[EventDate "2022.07.25"]
[EventType "tourn"]
[EventCountry "POR"]
[SourceTitle "playchess.com"]
[Source "ChessBase"]
[SourceQuality "1"]
[TimeControl "5400+30"]

{[%evp 9,60,18,19,0,0,0,32,36,31,39,41,40,44,44,27,40,27,24,25,43,29,0,8,0,0,0,0,0,0,0,0,0,0,0,0,0,0,0,0,0,0,0,0,0,0,0,0,0,0,0,0,0,0]} 1. d4 {[%emt 0:00:03]} Nf6 {[%emt 0:00:24]} 2. c4 {[%emt 0:00:06]} e6 {[%emt 0:00:08]} 3. Nf3 {[%emt 0:00:05]} d5 {[%emt 0:00:05]} 4. Nc3 {[%emt 0:00:12]} dxc4 {[%emt 0:00:49]} 5. e4 {[%emt 0:00:05]} Bb4 {[%emt 0:00:05]} 6. Bxc4 {[%emt 0:00:22] D24: Queen's Gambit Accepted: 3 Nf3 Nf6 4 Nc3.} Nxe4 {[%emt 0:00:31]} 7. O-O {[%emt 0:00:06]} Nf6 {[%emt 0:05:21]} 8. Qa4+ $1 {[%emt 0:25:01] White is slightly better.} Nc6 {[%emt 0:00:32]} 9. Ne5 {[%emt 0:00:23]} Bd6 {[%emt 0:00:06]} ({But not} 9... Bd7 10. Nxc6 Bxc3 11. Nxd8 $16) 10. Nxc6 {[%emt 0:00:18]} bxc6 {[%emt 0:00:04]} 11. Qxc6+ {[%emt 0:00:04]} Bd7 {[%emt 0:00:02]} 12. Qf3 {[%emt 0:00:10]} h6 {[%emt 0:00:07] [#] Inhibits Bg5.} 13. Nb5 $146 {[%emt 0:09:44]} ({Predecessor:} 13. Bf4 Bxf4 14. Qxf4 Bc6 15. Rfd1 O-O 16. Rac1 Qb8 17. b3 Rd8 18. Qe5 Qb7 19. f3 {1-0 (43) Bok,B (2624)-Deac,B (2679) Chess.com INT 2022}) 13... O-O {[%emt 0:02:45]} 14. Nxd6 {[%emt 0:00:52]} cxd6 {[%emt 0:00:05]} 15. d5 {[%emt 0:00:29]} exd5 {[%emt 0:11:37] The position is equal.} 16. Bxd5 {[%emt 0:00:47]} Nxd5 {[%emt 0:00:06]} 17. Qxd5 {[%emt 0:00:36]} Qf6 {[%emt 0:00:22]} 18. Be3 {[%emt 0:01:38]} Qxb2 {[%emt 0:00:39]} 19. Qxd6 {[%emt 0:00:07]} Be6 {[%emt 0:00:50]} 20. Bd4 {[%emt 0:00:38]} Qb8 {[%emt 0:00:26]} 21. Qxb8 {[%emt 0:02:10]} Rfxb8 {[%emt 0:00:23]} 22. Rfb1 {[%emt 0:00:13]} Rxb1+ {[%emt 0:00:03]} 23. Rxb1 {[%emt 0:00:03]} Bxa2 $11 {[%emt 0:00:10][%mdl 4096] Endgame KRB-KRB} 24. Ra1 {[%emt 0:00:03]} Be6 {[%emt 0:00:04]} 25. Bxa7 {[%emt 0:00:05]} f6 {[%emt 0:00:06]} 26. Bd4 {[%emt 0:00:03]} Rxa1+ {[%emt 0:00:03]} 27. Bxa1 {[%emt 0:00:02]} Kf7 {[%emt 0:00:06]} 28. f4 {[%emt 0:00:03]} g5 {[%emt 0:00:05]} 29. fxg5 {[%emt 0:00:02]} hxg5 {[%emt 0:00:05]} 30. Kf2 {[%emt 0:00:02]} Kg6 {[%emt 0:00:05] Weighted Error Value: White=0.02 (flawless) /Black=0.02 (flawless)} 1/2-1/2

[Event "IX Famalicao Open 2022"]
[Site "Vila Nova de Famalicao"]
[Date "2022.07.27"]
[Round "5.3"]
[White "Aditya Mittal"]
[Black "Martinez Duany, Lelys Stanley"]
[Result "1/2-1/2"]
[ECO "E94"]
[WhiteElo "2480"]
[BlackElo "2497"]
[Annotator "TA"]
[PlyCount "77"]
[EventDate "2022.07.25"]
[EventType "tourn"]
[EventCountry "POR"]
[SourceTitle "playchess.com"]
[Source "ChessBase"]
[SourceQuality "1"]
[TimeControl "5400+30"]

{[%evp 18,77,77,64,73,70,76,71,88,75,104,40,70,60,62,58,95,96,107,82,138,38,39,33,33,0,31,31,32,37,37,0,12,0,38,27,32,41,33,0,8,0,0,0,0,0,0,0,0,0,0,0,20,19,5,10,33,-34,0,0,0,-31]} 1. d4 {[%emt 0:00:03]} d6 {[%emt 0:02:09]} 2. Nf3 {[%emt 0:00:08]} Nf6 {[%emt 0:00:28]} 3. c4 {[%emt 0:00:03]} g6 {[%emt 0:00:31]} 4. Nc3 {[%emt 0:00:04]} Bg7 {[%emt 0:00:08]} 5. e4 {[%emt 0:00:10]} O-O {[%emt 0:01:55]} 6. Be2 {[%emt 0:00:02]} e5 {[%emt 0:01:14]} 7. O-O {[%emt 0:00:03]} Nbd7 {[%emt 0:00:42]} 8. Be3 {[%emt 0:00:07]} h6 {[%emt 0:00:32]} 9. dxe5 {[%emt 0:00:07]} dxe5 {[%emt 0:00:53]} 10. Qc1 $1 {[%emt 0:00:03][%mdl 4] is recently more successful than 10.Nd2.} Kh7 {[%emt 0:01:46] E94: King's Indian: Classical: 6 Be2 e5 7 0-0: Various Black 7th moves.} 11. Rd1 {[%emt 0:00:03]} Re8 {[%emt 0:01:05]} 12. b4 {[%emt 0:00:17]} c6 {[%emt 0:02:13] White is better.} 13. c5 {[%emt 0:03:06]} Qe7 {[%emt 0:00:58]} 14. Nd2 {[%emt 0:01:58] White is much more active.} (14. h3 $16) 14... Nf8 {[%emt 0:03:32]} 15. Nc4 {[%emt 0:12:06]} Ng4 {[%emt 0:00:22]} 16. Bd2 {[%emt 0:01:07] aiming for Nd6.} Qh4 {[%emt 0:03:41]} 17. h3 {[%emt 0:02:19]} Qxf2+ {[%emt 0:06:20]} 18. Kh1 {[%emt 0:00:02]} Nf6 {[%emt 0:00:35]} (18... Qh4 $142) 19. Rf1 {[%emt 0:15:45]} (19. Qc2 $16 {Be1 is the strong threat.} Nh5 20. Bxh5 gxh5 21. Rf1) 19... Qh4 $14 {[%emt 0:00:20]} 20. Be1 {[%emt 0:07:29][%mdl 1024] White has compensation.} Qg5 {[%emt 0:00:18] [#]} 21. Bd2 $146 {[%emt 0:00:02]} ({Predecessor:} 21. Qd1 Nh5 22. Nd6 Re7 23. Bxh5 gxh5 24. Bd2 Qg6 25. Nf5 Rd7 26. Qe2 {0-1 (38) Gruenberg,H (2455)-Wirius,S (2285) Austria 1999}) 21... Qh4 {[%emt 0:00:09]} 22. Nd6 {[%emt 0:16:54]} Re7 $1 {[%emt 0:01:06]} (22... Bxh3 $2 23. Be1 (23. gxh3 Qxh3+ 24. Kg1 Qg3+ 25. Kh1 Qh3+ 26. Kg1 Qg3+ 27. Kh1 Qh3+ $11) (23. Nxe8 Bg4+ 24. Kg1 Rxe8 $15) 23... Qg5 24. Qxg5 hxg5 25. Nxe8 Bxg2+ 26. Kxg2 $18) 23. Be1 {[%emt 0:00:03]} Qg5 {[%emt 0:00:08]} 24. Bd2 {[%emt 0:00:02]} (24. Qd1 $5 {[%cal Rd1d3]} Nh5 25. Bxh5 (25. Nxf7 Ng3+ 26. Bxg3 Qxg3 $11) (25. Rxf7 Nf4 $11) 25... Qxh5 26. Qxh5 (26. Nxf7 Qxd1 27. Rxd1 Ne6 $11) (26. Rxf7 Rxf7 27. Nxf7 Be6 $14) 26... gxh5 27. Ne2 $14 (27. Rxf7 Rxf7 28. Nxf7 Be6 $11)) 24... Qh4 {[%emt 0:00:06]} (24... Qg3 $2 25. Rf3 Qh4 26. Be1 $18) 25. Kh2 {[%emt 0:06:21]} Ng4+ {[%emt 0:12:27]} 26. Kg1 {[%emt 0:02:14]} Nf6 {[%emt 0:00:11]} 27. Be1 {[%emt 0:06:29]} Qg5 {[%emt 0:00:16]} 28. Bd2 {[%emt 0:00:01]} Qh4 {[%emt 0:00:08]} (28... Qg3 $2 29. Rf3 Qh4 30. Qf1 $18) 29. Nxc8 {[%emt 0:01:55]} Rxc8 {[%emt 0:00:17]} 30. Be1 {[%emt 0:00:01]} Qg5 {[%emt 0:00:14]} 31. Bd2 {[%emt 0:00:01]} Qh4 {[%emt 0:00:11]} (31... Qg3 32. Rf3 Qh4 33. Qf1 Nxe4 34. Be1 $16) 32. Be1 {[%emt 0:01:44]} Qg5 {[%emt 0:00:09]} 33. Qa3 {[%emt 0:02:26] [#] Strongly threatening h4.} h5 $1 {[%emt 0:05:17] White must now prevent ...Ne6.} 34. h4 $1 {[%emt 0:03:24]} Qh6 {[%emt 0:00:07] Hoping for ...Rd8.} 35. Rd1 {[%emt 0:00:23] Prevents Rd8. And now Bd2 would win.} (35. Rf3 Rd8 36. Bc4 Rd4 $17) 35... Rd7 {[%emt 0:05:15] Against Bd2} ({Don't take} 35... Qe3+ 36. Kh1 (36. Bf2 Qf4 $16) 36... Rd7 37. Rxd7 N8xd7 38. Rf3 $16 (38. Qxa7 Nxe4 39. Qxb7 Nxc3 $15)) 36. Rxd7 {[%emt 0:00:11]} N8xd7 {[%emt 0:00:08]} 37. Qb2 {[%emt 0:02:18]} (37. Nd1 $14) 37... Qe3+ {[%emt 0:04:11]} 38. Bf2 {[%emt 0:04:00]} Qh6 {[%emt 0:00:06]} 39. Be1 {[%emt 0:00:10] Weighted Error Value: White=0.16 (very precise) /Black=0.09 (flawless)} 1/2-1/2

[Event "IX Famalicao Open 2022"]
[Site "Vila Nova de Famalicao"]
[Date "2022.07.27"]
[Round "5.4"]
[White "Spraggett, Kevin"]
[Black "Umetsubo, Cesar Hidemitsu"]
[Result "1/2-1/2"]
[ECO "A34"]
[WhiteElo "2487"]
[BlackElo "2405"]
[Annotator "TA"]
[PlyCount "94"]
[EventDate "2022.07.25"]
[EventType "tourn"]
[EventCountry "POR"]
[SourceTitle "playchess.com"]
[Source "ChessBase"]
[SourceQuality "1"]
[TimeControl "5400+30"]

{[%evp 15,94,0,14,0,0,0,14,8,0,15,74,75,69,73,74,68,66,66,66,66,57,66,91,83,83,78,83,87,97,60,57,56,47,49,72,73,72,75,93,33,41,38,47,44,47,41,39,25,25,25,25,9,10,9,12,12,13,16,15,15,15,16,30,24,20,20,28,15,33,33,33,8,9,9,20,0,0,0,0,0,0]} 1. c4 Nf6 2. g3 c5 3. Bg2 d5 4. cxd5 Nxd5 5. Nc3 Nc7 6. b3 e5 7. Bb2 Be7 8. Rc1 f6 9. Nh3 {A34: Symmetrical English: 2 Nc3, lines with ...d5.} Be6 10. f4 Qd7 11. Nf2 Nc6 12. fxe5 Nxe5 (12... fxe5 $11 13. Qc2 O-O) 13. Bxb7 $16 Rb8 {[#]} 14. Bg2 $146 ({Predecessor:} 14. Be4 c4 15. d4 Nf7 16. d5 Bf5 17. Bxf5 Qxf5 18. Qd4 Nd6 19. O-O cxb3 20. Qxa7 {0-1 (37) Ujtelky,M-Langeweg,K Sochi 1967}) 14... c4 {[%cal Rc4b3]} 15. d4 (15. Nce4 {keeps more tension.} Nf7 16. Qc2 O-O 17. bxc4 f5 18. Nc3) 15... cxd3 16. Nxd3 Nxd3+ 17. Qxd3 Qxd3 18. exd3 Rd8 19. Ne2 Bd5 20. Rxc7 Bxg2 21. Rg1 Bh3 22. Kd2 {Black must now prevent g4.} ({Much worse is} 22. Rxa7 Bb4+ 23. Bc3 Bc5 $11) 22... Rd7 23. Rgc1 Bb4+ 24. Ke3 Ba5 {[#]} 25. Rxd7 {Active counter play!} Kxd7 26. Nf4 Bf5 27. Bc3 ({Better is} 27. Bd4 $16 {Strongly threatening Rc5.} Re8+ 28. Kf3) 27... Bb6+ $14 28. Kd2 h5 29. Nd5 h4 30. Nxb6+ axb6 {[%mdl 4096] Endgame KRB-KRB} 31. Bd4 hxg3 32. hxg3 Rh2+ 33. Ke3 Rxa2 34. Bxb6 Rb2 35. Rc3 Be6 36. Rc7+ Kd6 37. Rxg7 Rxb3 38. Bc7+ Kc6 39. Bd8 Bf5 40. Bxf6 Bxd3 41. g4 Kd6 42. Kf4 Ke6 43. Bd4 Rb4 {The position is equal.} 44. Ke3 Bb1 45. Ra7 Rb3+ 46. Kf2 Rb4 47. Ke3 Rb3+ {Weighted Error Value: White=0.05 (flawless) /Black=0.06 (flawless)} 1/2-1/2

[Event "IX Famalicao Open 2022"]
[Site "Vila Nova de Famalicao"]
[Date "2022.07.27"]
[Round "5.5"]
[White "Monteiro, Paulo Alexandre G"]
[Black "Petkov, Vladimir"]
[Result "0-1"]
[ECO "A50"]
[WhiteElo "1980"]
[BlackElo "2470"]
[Annotator "TA"]
[PlyCount "92"]
[EventDate "2022.07.25"]
[EventType "tourn"]
[EventCountry "POR"]
[SourceTitle "playchess.com"]
[Source "ChessBase"]
[SourceQuality "1"]
[TimeControl "5400+30"]

{[%evp 9,92,43,54,59,50,32,49,34,66,33,54,47,62,53,75,71,97,48,45,31,77,0,11,-25,-16,-7,34,-14,-13,-49,-31,-57,-53,-62,-44,-77,-68,-75,-70,-101,-97,-104,-104,-128,-124,-289,-95,-112,-95,-429,-420,-437,-437,-437,-437,-424,-424,-454,-448,-1132,-1106,-1717,-1733,-1647,-1610,-1632,-1074,-981,0,-29983,-29984,-29984,-29985,-29982,-29981,-29989,-2411,-1950,-1762,-860,-3250,-29987,-29988,-29989,-29990]} 1. d4 Nf6 {[%emt 0:01:21]} 2. c4 {[%emt 0:00:13]} b6 {[%emt 0:01:00]} 3. Nc3 {[%emt 0:01:09]} Bb7 {[%emt 0:01:23]} 4. f3 {[%emt 0:04:18]} e6 {[%emt 0:03:49]} 5. e4 {[%emt 0:02:01]} d5 {[%emt 0:00:42]} 6. cxd5 {[%emt 0:09:07] A50: Queen's Fianchetto Defence (1 d4 Nf6 2 c4 b6).} exd5 {[%emt 0:00:43]} 7. Bb5+ {[%emt 0:05:56]} c6 {[%emt 0:02:01]} 8. Ba4 {[%emt 0:03:17] White is slightly better.} Be7 {[%emt 0:09:09]} 9. Nge2 {[%emt 0:08:22]} (9. e5 $5 {[%cal Re5f6]}) 9... O-O {[%emt 0:11:55]} 10. O-O {[%emt 0:07:11] [#]} c5 $146 {[%emt 0:25:00]} ({Predecessor:} 10... Na6 11. e5 Nd7 12. f4 c5 13. Kh1 cxd4 14. Nxd4 Rc8 15. Bc2 Nb4 16. Bf5 Rc4 {1-0 (28) Maksimovic,S (2305)-Oney,A (2300) Varna 1994}) 11. e5 {[%emt 0:10:19]} Ne8 {[%emt 0:06:08]} 12. f4 $1 {[%emt 0:08:13]} f5 {[%emt 0:04:23]} 13. Be3 {[%emt 0:08:01]} ({White should play} 13. dxc5 $1 $16 Bxc5+ 14. Kh1) 13... Na6 $14 {[%emt 0:01:13]} 14. Bb3 {[%emt 0:03:02]} Nac7 {[%emt 0:01:52]} (14... Nec7 $14 {deserves consideration.}) 15. Kh1 {[%emt 0:02:42]} (15. g4 $1 $16) 15... g6 $11 {[%emt 0:00:28]} 16. Qd2 {[%emt 0:02:42]} c4 {[%emt 0:01:24]} 17. Bc2 {[%emt 0:02:02][%cal Og2g4]} Bc8 {[%emt 0:00:06]} 18. Rg1 {[%emt 0:07:16]} (18. a4 $14) 18... b5 {[%emt 0:01:29]} 19. Nd1 {[%emt 0:01:31]} a5 {[%emt 0:01:08][%cal Ba7a5,Ba5a4,Ba4b3][%mdl 32]} 20. Nf2 {[%emt 0:00:12]} Ng7 {[%emt 0:01:26]} 21. h3 {[%emt 0:01:13]} Be6 {[%emt 0:00:22]} 22. g4 {[%emt 0:01:44]} Qd7 {[%emt 0:00:09]} 23. Rg2 {[%emt 0:00:35]} b4 {[%emt 0:00:54]} 24. Rag1 {[%emt 0:02:16]} a4 {[%emt 0:00:55]} 25. Qd1 {[%emt 0:06:44]} Kh8 {[%emt 0:00:24]} 26. Bb1 {[%emt 0:00:31]} Nb5 {[%emt 0:00:28] Black is more active.} 27. Ng3 $2 {[%emt 0:00:19] [#]} (27. Qd2 $17 {is a better defense.}) 27... b3 $2 {[%emt 0:00:43]} (27... a3 $1 $19 {[%cal Ra3b2] has better winning chances.} 28. bxa3 Nc3) 28. axb3 $17 {[%emt 0:00:30]} axb3 {[%emt 0:00:11]} 29. Nh5 $2 {[%emt 0:00:24][%mdl 8192]} gxh5 $19 {[%emt 0:13:01]} 30. gxh5 {[%emt 0:00:37]} Rg8 {[%emt 0:00:28]} 31. h6 {[%emt 0:01:20]} Ne8 {[%emt 0:02:31]} 32. Rxg8+ {[%emt 0:00:37]} Bxg8 {[%emt 0:00:07]} 33. Qh5 {[%emt 0:00:11]} Be6 {[%emt 0:06:10]} 34. Bxf5 {[%emt 0:02:12]} (34. Qe2 $142) 34... Bxf5 {[%emt 0:00:54]} 35. Qf7 {[%emt 0:00:09]} Bg6 {[%emt 0:00:20]} 36. Rxg6 {[%emt 0:00:30]} hxg6 {[%emt 0:00:02]} 37. Ng4 {[%emt 0:00:35]} Qf5 {[%emt 0:03:56]} 38. Qxe7 {[%emt 0:00:25]} c3 $2 {[%emt 0:00:11]} (38... Nbc7 $19 39. Kg2 Ne6) 39. Bc1 $2 {[%emt 0:00:55][%mdl 8192]} (39. Kg2 $11 Qxg4+ 40. hxg4 cxb2 41. Qf8+ Kh7 42. Qf7+ Kh8 43. Qxg6) 39... cxb2 {[%emt 0:00:57]} 40. Bxb2 {[%emt 0:00:13]} Qb1+ {[%emt 0:00:24]} 41. Kg2 {[%emt 0:00:14]} Qxb2+ {[%emt 0:00:13]} 42. Kg3 {[%emt 0:00:10]} Qc3+ {[%emt 0:00:15]} (42... Qa3 $142 43. Qg5 b2+ 44. Kg2 b1=Q 45. Nf2 Qe3 46. Qg3 {[#]} Qg1+ $3 {[%mdl 512]} 47. Kxg1 Qxg3+ 48. Kf1 Ra1+ 49. Ke2 Ra2+ 50. Kf1 Qxf2#) 43. Kh4 {[%emt 0:00:13]} Qc7 {[%emt 0:00:16]} 44. Qf8+ {[%emt 0:00:35]} Kh7 {[%emt 0:00:01]} 45. e6 {[%emt 0:00:34]} Nxd4 {[%emt 0:00:18]} 46. e7 {[%emt 0:00:30]} Nf5+ {[%emt 0:00:11] Weighted Error Value: White=0.79/Black=0.51} 0-1

[Event "IX Famalicao Open 2022"]
[Site "Vila Nova de Famalicao"]
[Date "2022.07.27"]
[Round "5.6"]
[White "Nigmatov, Ortik"]
[Black "Anishka Vikram"]
[Result "1-0"]
[ECO "A06"]
[WhiteElo "2437"]
[BlackElo "1871"]
[Annotator "TA"]
[PlyCount "72"]
[EventDate "2022.07.25"]
[EventType "tourn"]
[EventCountry "POR"]
[SourceTitle "playchess.com"]
[Source "ChessBase"]
[SourceQuality "1"]
[TimeControl "5400+30"]

{[%evp 21,72,25,30,27,32,32,41,34,35,40,66,65,104,105,97,98,137,142,212,208,202,208,258,192,206,200,275,281,430,425,466,475,613,626,1282,1083,29989,29990,29990,591,29990,29991,29993,8809,6303,6303,4133,5297,29996,29997,29997,29998,29999]} 1. Nf3 d5 2. e3 Nf6 3. c4 e6 4. b3 Be7 5. Bb2 c5 6. cxd5 exd5 7. d4 Nc6 8. Be2 O-O 9. O-O Ne4 10. dxc5 Bxc5 11. Nc3 Be6 12. Rc1 {D32: Tarrasch Defence: Sidelines and lines without g3.} Nxc3 13. Rxc3 Qe7 {[#]} 14. Bb5 $146 {White is slightly better.} ({Predecessor:} 14. Qd3 h6 15. Rcc1 Ba3 16. Qc3 Bxb2 17. Qxb2 a6 18. Rfd1 Rac8 19. h3 f5 20. Nd4 Nxd4 21. Qxd4 Rxc1 22. Rxc1 {½-½ (27) Hanisch,B (2101)-Schramm,A (1844) GER corr 1997}) 14... Bb4 15. Rc1 Rac8 16. Nd4 Qd6 17. Nxe6 fxe6 18. Qg4 $40 {[%csl Gb2][%cal Rg4g7][%mdl 128] White goes for the king.} Qe7 19. Bxc6 bxc6 {[#]} (19... h5 $16 20. Qxg7+ (20. Qxh5 Rxc6 21. Rxc6 bxc6 $16) 20... Qxg7 21. Bxg7 Kxg7) 20. Bxg7 $1 $18 {[%mdl 512]} Qxg7 21. Qxb4 Qb2 {[%cal Of8f2]} 22. Qc3 Qa3 23. f4 ({Don't take} 23. Qe5 Qe7 24. e4 Qf6 25. Qxf6 Rxf6) 23... c5 24. Rf3 {[#] Threatens to win with Rd1.} ({But not} 24. Qe5 Rce8 25. Rc2 Qb4 $18) 24... d4 (24... Rf6 $142 25. Rc2 (25. Qxf6 Qxc1+ 26. Kf2 Qc2+ 27. Kg3 Qg6+ 28. Qxg6+ hxg6 $16) 25... Rg6) 25. Qc4 Kh8 26. exd4 Rf5 27. Qc3 {Black must now prevent dxc5+.} Kg8 28. d5 {Rg3+ would kill now.} Rxd5 29. Rg3+ Kf7 30. Qg7+ Ke8 31. Re1 Kd8 32. Qxh7 (32. Qb7 $142 Qa4 33. bxa4 Rc7 34. Rg8+ Kd7 35. Rg7+ Ke8 36. Qxc7 Rd7 37. Qxd7+ Kf8 38. Qf7#) 32... Rd7 33. Rg7 Rxg7 34. Qxg7 {White wants to mate with Rd1+.} Qa6 35. Rd1+ Ke8 36. Rd7 {[%csl Gd7][%cal Rg7e7]} Ra8 {White took control after the opening.  Weighted Error Value: White=0.26 (precise) /Black=0.87} 1-0

[Event "IX Famalicao Open 2022"]
[Site "Vila Nova de Famalicao"]
[Date "2022.07.27"]
[Round "5.8"]
[White "Andrade, Ricardo Sarmento"]
[Black "Dias, Paulo"]
[Result "0-1"]
[ECO "C15"]
[WhiteElo "1862"]
[BlackElo "2348"]
[Annotator "TA"]
[PlyCount "50"]
[EventDate "2022.07.25"]
[EventType "tourn"]
[EventCountry "POR"]
[SourceTitle "playchess.com"]
[Source "ChessBase"]
[SourceQuality "1"]
[TimeControl "5400+30"]

{[%evp 10,50,0,0,22,19,16,0,0,-14,-1,-14,0,-9,0,-21,-10,-21,0,-22,-8,-8,-17,-75,-67,-202,-147,-220,-168,-257,-245,-364,-366,-426,-437,-416,-404,-395,-387,-600,-596,-699,-682]} 1. e4 e6 2. d4 d5 3. Nc3 Bb4 4. exd5 exd5 5. a3 Bxc3+ 6. bxc3 Bf5 {C01: French: Exchange Variation.} 7. Bd3 Ne7 8. Nf3 Nbc6 {The position is equal.} 9. Rb1 b6 10. O-O O-O 11. a4 Re8 12. Re1 Qd7 {[#]} 13. Bf4 $146 ({Predecessor:} 13. Ba3 Ng6 14. Qd2 Na5 15. Bb5 c6 16. Bd3 Be4 17. Ne5 Nxe5 18. dxe5 Bg6 19. f4 {1-0 (76) Hakemi,A (2336)-Caruana,F (2792) Chess.com INT 2022}) 13... f6 14. c4 Bxd3 15. Qxd3 Na5 {[%csl LRa4,LRc4]} 16. Nd2 (16. c5 $11) 16... Qxa4 $17 {[%cal Ra5c4]} 17. Bxc7 {This move loses the game for White.} (17. c5 $1 $15) 17... Nxc4 18. Nxc4 (18. Bf4 $17) 18... Qxc4 19. Qxc4 (19. Bf4 $142) 19... dxc4 $19 20. Ra1 (20. Kf1 $142) 20... Nd5 21. Rxe8+ Rxe8 22. Bd6 a5 23. Kf1 Re4 24. c3 (24. Ba3 $142) 24... Nxc3 25. Bc7 Nd5 {Weighted Error Value: White=0.49/Black=0.11 (very precise)} 0-1

[Event "IX Famalicao Open 2022"]
[Site "Vila Nova de Famalicao"]
[Date "2022.07.27"]
[Round "5.9"]
[White "Borges, Guilherme Deola"]
[Black "Ribeiro, Rodrigo"]
[Result "1-0"]
[ECO "D33"]
[WhiteElo "2185"]
[BlackElo "1903"]
[Annotator "TA"]
[PlyCount "42"]
[EventDate "2022.07.25"]
[EventType "tourn"]
[EventCountry "POR"]
[SourceTitle "playchess.com"]
[Source "ChessBase"]
[SourceQuality "1"]
[TimeControl "5400+30"]

{[%evp 16,42,56,58,52,56,52,39,49,48,58,49,66,56,125,116,166,148,175,185,185,162,201,196,215,229,213,196,347]} 1. d4 {[%emt 0:00:03]} e6 {[%emt 0:00:09]} 2. c4 {[%emt 0:01:03]} d5 {[%emt 0:00:08]} 3. Nf3 {[%emt 0:00:29]} c5 {[%emt 0:00:56]} 4. cxd5 {[%emt 0:00:26]} exd5 {[%emt 0:00:06]} 5. Nc3 {[%emt 0:01:39]} Nf6 {[%emt 0:00:39]} 6. g3 {[%emt 0:00:09]} Nc6 {[%emt 0:00:26]} 7. Bg2 Be6 {[%emt 0:04:34] 7...cxd4 is becoming the main line.} 8. O-O {[%emt 0:01:00]} h6 {[%emt 0:03:21]} 9. b3 {[%emt 0:01:55]} cxd4 {[%emt 0:09:44] D33: Tarrasch Defence: 6 g3 sidelines.} 10. Nxd4 {[%emt 0:00:59]} Bc5 {[%emt 0:01:17] [#]} 11. Be3 $146 {[%emt 0:14:26]} ({Predecessor:} 11. Nxc6 bxc6 12. Bb2 O-O 13. Qc2 Rc8 14. Na4 Bb6 15. Nc5 Qe7 16. Bd4 Nd7 17. Rac1 {1-0 (69) Foster,T (1893)-Chatterjee,S (1336) London 2017}) 11... Qe7 {[%emt 0:03:04] White is slightly better.} 12. Nxe6 {[%emt 0:04:39]} fxe6 {[%emt 0:00:14]} 13. Bxc5 $1 {[%emt 0:00:29]} Qxc5 {[%emt 0:00:07]} 14. Rc1 {[%emt 0:00:25][%cal Oc3d5] [#] aiming for Nxd5!} Qe7 {[%emt 0:01:34]} (14... O-O-O $14) 15. e4 $36 {[%emt 0:02:34][%cal Re4d5][%mdl 2048] White is really pushing.} d4 {[%emt 0:00:40]} (15... O-O-O $16) 16. e5 $1 $18 {[%emt 0:05:21] White is clearly better.} dxc3 {[%emt 0:03:10]} 17. exf6 {[%emt 0:00:11]} Qxf6 {[%emt 0:00:17]} 18. Qh5+ {[%emt 0:03:24]} g6 {[%emt 0:01:45]} 19. Bxc6+ {[%emt 0:01:43]} Kf7 {[%emt 0:00:30] [#]} 20. Qa5 {[%emt 0:07:27]} bxc6 {[%emt 0:00:18]} 21. Rxc3 {[%emt 0:00:15]} Rac8 $2 {[%emt 0:01:37] Black did not feel at home in the position after the opening.  Weighted Error Value: White=0.01 (flawless) /Black=0.26 (precise)} (21... Rhe8 {was called for.} 22. Rxc6 Kg8) 1-0